fUST/lending_fUST_20240506
["ID","MTS","AMOUNT","RATE_DAILY","PERIOD"]
[326485130,1714992649166,-500.0,0.00016925,2]
[326485132,1714992649176,-500.0,0.00016925,2]
[326485133,1714992649185,-500.0,0.00016925,2]
[326485135,1714992649194,-500.0,0.00016925,2]
[326485137,1714992649204,-659.33,0.00016925,2]
[326485139,1714992649214,-681.67,0.00016925,2]
[326485140,1714992649223,-300.0,0.00016925,2]
[326485142,1714992649233,-500.0,0.00016925,2]
[326485144,1714992649242,-500.0,0.00016925,2]
[326485146,1714992649251,-500.0,0.00016925,2]
[326485148,1714992649261,-500.0,0.00016925,2]
[326485149,1714992649269,-500.0,0.00016925,2]
[326485151,1714992649279,-500.0,0.00016925,2]
[326485152,1714992649288,-1723.95,0.00016925,2]
[326485153,1714992649297,-566.61587343,0.00016925,2]
[326485154,1714992649307,-500.10532717,0.00016925,2]
[326485155,1714992649316,-500.0,0.00016925,2]
[326485156,1714992649326,-2267.59,0.00016925,2]
[326485157,1714992649336,-2101.81,0.00016925,2]
[326485158,1714992649345,-500.0,0.00016925,2]
[326485159,1714992649355,-500.0,0.00016925,2]
[326485160,1714992649364,-500.0,0.00016925,2]
[326485161,1714992649376,-500.0,0.00016925,2]
[326485162,1714992649385,-500.0,0.00016925,2]
[326485163,1714992649395,-500.0,0.00016925,2]
[326485164,1714992649404,-500.0,0.00016925,2]
[326485165,1714992649413,-3569.63,0.00016925,2]
[326485166,1714992649422,-500.0,0.00016925,2]
[326485167,1714992649432,-568.08,0.00016925,2]
[326485168,1714992649442,-888.5,0.00016925,2]
[326485169,1714992649452,-500.0,0.00016925,2]
[326485170,1714992649462,-500.0,0.00016925,2]
[326485171,1714992649471,-925.54,0.00016925,2]
[326485172,1714992649480,-500.0,0.00016925,2]
[326485173,1714992649489,-500.0,0.00016925,2]
[326485174,1714992649499,-500.0,0.00016925,2]
[326485175,1714992649508,-648.74,0.00016925,2]
[326485176,1714992649517,-1117.77,0.00016925,2]
[326485177,1714992649526,-500.0,0.00016925,2]
[326485178,1714992649536,-500.0,0.00016925,2]
[326485179,1714992649545,-500.0,0.00016925,2]
[326485180,1714992649554,-691.19,0.00016925,2]
[326485181,1714992649563,-500.0,0.00016925,2]
[326485182,1714992649572,-500.0,0.00016925,2]
[326485183,1714992649581,-634.85,0.00016925,2]
[326485184,1714992649590,-500.0,0.00016925,2]
[326485185,1714992649599,-500.0,0.00016925,2]
[326485186,1714992649608,-500.0,0.00016925,2]
[326485187,1714992649618,-500.0,0.00016925,2]
[326485188,1714992649629,-500.0,0.00016925,2]
[326485189,1714992649639,-500.0,0.00016925,2]
[326485190,1714992649649,-937.69,0.00016925,2]
[326485191,1714992649658,-500.0,0.00016925,2]
[326485192,1714992649667,-500.0,0.00016925,2]
[326485193,1714992649677,-500.0,0.00016925,2]
[326485194,1714992649686,-602.87,0.00016925,2]
[326485195,1714992649696,-500.0,0.00016925,2]
[326485196,1714992649705,-500.0,0.00016925,2]
[326485197,1714992649714,-500.0,0.00016925,2]
[326485198,1714992649723,-500.0,0.00016925,2]
[326485199,1714992649733,-500.0,0.00016925,2]
[326485200,1714992649742,-500.0,0.00016925,2]
[326485201,1714992649751,-1764.02,0.00016925,2]
[326485202,1714992649761,-500.0,0.00016925,2]
[326485203,1714992649773,-500.0,0.00016925,2]
[326485204,1714992649782,-500.0,0.00016925,2]
[326485205,1714992649792,-500.0,0.00016925,2]
[326485206,1714992649801,-500.0,0.00016925,2]
[326485207,1714992649811,-500.0,0.00016925,2]
[326485209,1714992649820,-500.0,0.00016925,2]
[326485210,1714992649831,-1165.21,0.00016925,2]
[326485211,1714992649841,-619.42,0.00016925,2]
[326485212,1714992649850,-500.0,0.00016925,2]
[326485214,1714992649860,-299.90065724,0.00016925,2]
[326485215,1714992649869,-500.0,0.00016925,2]
[326485216,1714992649884,-500.0,0.00016925,2]
[326485217,1714992650029,-729.94,0.00016925,2]
[326485218,1714992650038,-504.57220645,0.00016925,2]
[326485219,1714992650048,-500.0,0.00016925,2]
[326485220,1714992650057,-500.0,0.00016925,2]
[326485221,1714992650067,-500.0,0.00016925,2]
[326485222,1714992650076,-500.0,0.00016925,2]
[326485223,1714992650088,-1469.9,0.00016925,2]
[326485224,1714992650097,-747.96,0.00016925,2]
[326485225,1714992650106,-500.0,0.00016925,2]
[326485226,1714992650115,-500.0,0.00016925,2]
[326485227,1714992650129,-500.0,0.00016925,2]
[326485228,1714992650139,-500.0,0.00016925,2]
[326485229,1714992650148,-500.0,0.00016925,2]
[326485230,1714992650157,-500.0,0.00016925,2]
[326485231,1714992650166,-585.14,0.00016925,2]
[326485232,1714992650175,-600.25,0.00016925,2]
[326485233,1714992650185,-831.46,0.00016925,2]
[326485234,1714992650194,-500.0,0.00016925,2]
[326485235,1714992650204,-1035.9,0.00016925,2]
[326485236,1714992650213,-500.0,0.00016925,2]
[326485237,1714992650222,-500.0,0.00016925,2]
[326485238,1714992650232,-500.0,0.00016925,2]
[326485239,1714992650246,-500.0,0.00016925,2]
[326485240,1714992650255,-1000.0,0.00016925,2]
[326485241,1714992650264,-412.51237016,0.00016992,2]
[326485242,1714992650274,-500.0,0.00017091,2]
[326485243,1714992650283,-500.0,0.00017091,2]
[326485244,1714992650292,-500.0,0.00017091,2]
[326485245,1714992650301,-500.0,0.00017091,2]
[326485246,1714992650310,-500.0,0.00017091,2]
[326485247,1714992650319,-1000.0,0.00017091,2]
[326485248,1714992650328,-150.14787567,0.00017091,2]
[326485249,1714992650338,-2727.05,0.00017091,2]
[326485250,1714992650347,-500.0,0.00017091,2]
[326485251,1714992650356,-539.4,0.00017091,2]
[326485252,1714992650372,-500.0,0.00017091,2]
[326485253,1714992650383,-500.0,0.00017091,2]
[326485254,1714992650393,-500.0,0.00017091,2]
[326485255,1714992650402,-12419.78,0.00017091,2]
[326485256,1714992650411,-556.11895935,0.00017091,2]
[326485257,1714992650420,-501.89720286,0.00017091,2]
[326485258,1714992650429,-229.65474967,0.00017091,2]
[326485259,1714992650438,-500.0,0.00017091,2]
[326485260,1714992650448,-628.38024839,0.00017091,2]
[326485261,1714992650457,-500.0,0.00017091,2]
[326485262,1714992650466,-500.0,0.00017091,2]
[326485263,1714992650475,-1115.63,0.00017091,2]
[326485264,1714992650487,-500.0,0.00017091,2]
[326485265,1714992650496,-500.0,0.00017091,2]
[326485266,1714992650507,-500.0,0.00017091,2]
[326485267,1714992650516,-500.0,0.00017091,2]
[326485268,1714992650526,-500.0,0.00017091,2]
[326485269,1714992650535,-566.9,0.00017091,2]
[326485270,1714992650544,-500.0,0.00017091,2]
[326485271,1714992650553,-1578.45,0.00017091,2]
[326485272,1714992650562,-15662.02,0.00017091,2]
[326485273,1714992650571,-500.0,0.00017091,2]
[326485274,1714992650581,-1523.36,0.00017091,2]
[326485275,1714992650590,-767.09,0.00017091,2]
[326485276,1714992650599,-500.0,0.00017091,2]
[326485277,1714992650613,-500.0,0.00017091,2]
[326485278,1714992650623,-500.0,0.00017091,2]
[326485279,1714992650635,-604.89,0.00017091,2]
[326485280,1714992650644,-3995.1,0.00017091,2]
[326485281,1714992650654,-500.0,0.00017091,2]
[326485282,1714992650663,-754.808158,0.00017091,2]
[326485283,1714992650672,-500.0,0.00017091,2]
[326485284,1714992650681,-754.808158,0.00017091,2]
[326485285,1714992650690,-500.0,0.00017092,2]
[326485286,1714992650699,-500.0,0.00017092,2]
[326485287,1714992650708,-413.76407704,0.00017092,2]
[326485288,1714992650717,-500.0,0.00017092,2]
[326485289,1714992650726,-500.0,0.00017092,2]
[326485290,1714992650739,-500.0,0.00017092,2]
[326485291,1714992650748,-500.0,0.00017092,2]
[326485292,1714992650757,-521.69943983,0.00017092,2]
[326485293,1714992650767,-500.0,0.00017092,2]
[326485294,1714992650776,-676.75,0.00017092,2]
[326485295,1714992650785,-500.0,0.00017092,2]
[326485296,1714992650794,-500.0,0.00017092,2]
[326485297,1714992650803,-807.57,0.00017092,2]
[326485298,1714992650812,-1943.6,0.00017092,2]
[326485299,1714992650821,-500.0,0.00017092,2]
[326485300,1714992650831,-523.36874248,0.00017092,2]
[326485301,1714992650841,-1424.49,0.00017092,2]
[326485302,1714992650851,-2960.98,0.00017092,2]
[326485303,1714992650860,-500.0,0.00017092,2]
[326485304,1714992650868,-1475.74,0.00017092,2]
[326485305,1714992650880,-500.0,0.00017092,2]
[326485306,1714992650889,-500.0,0.00017092,2]
[326485307,1714992650898,-580.65,0.00017092,2]
[326485308,1714992650908,-500.0,0.00017092,2]
[326485309,1714992650923,-500.19663045,0.00017092,2]
[326485310,1714992650932,-528.054116,0.00017092,2]
[326485311,1714992650941,-720.56,0.00017092,2]
[326485312,1714992650950,-655.18,0.00017092,2]
[326485313,1714992650961,-151.0,0.00017092,2]
[326485314,1714992650970,-500.0,0.00017092,2]
[326485315,1714992650979,-768.44,0.00017092,2]
[326485316,1714992650988,-500.0,0.00017092,2]
[326485317,1714992650998,-500.0,0.00017092,2]
[326485318,1714992651007,-500.0,0.00017092,2]
[326485319,1714992651017,-677.08,0.00017092,2]
[326485320,1714992651026,-875.25,0.00017092,2]
[326485321,1714992651035,-500.0,0.00017092,2]
[326485322,1714992651044,-622.55764886,0.00017092,2]
[326485323,1714992651053,-461.74134685,0.00017092,2]
[326485324,1714992651063,-500.0,0.00017092,2]
[326485325,1714992651072,-2041.46,0.00017092,2]
[326485326,1714992651081,-500.0,0.00017092,2]
[326485327,1714992651090,-500.0,0.00017092,2]
[326485328,1714992651099,-500.0,0.00017092,2]
[326485329,1714992651108,-500.0,0.00017092,2]
[326485330,1714992651119,-500.0,0.00017092,2]
[326485331,1714992651130,-810.22,0.00017092,2]
[326485332,1714992651139,-500.0,0.00017092,2]
[326485333,1714992651149,-500.0,0.00017092,2]
[326485334,1714992651159,-500.0,0.00017092,2]
[326485335,1714992651168,-500.0,0.00017092,2]
[326485336,1714992651177,-500.0,0.00017092,2]
[326485337,1714992651186,-500.0,0.00017092,2]
[326485338,1714992651203,-500.0,0.00017092,2]
[326485339,1714992651218,-500.0,0.00017092,2]
[326485340,1714992651228,-187.78992473,0.00017092,2]
[326485341,1714992651237,-500.0,0.00017092,2]
[326485342,1714992651247,-500.0,0.00017092,2]
[326485343,1714992651256,-599.62,0.00017092,2]
[326485344,1714992651266,-794.03,0.00017092,2]
[326485345,1714992651275,-500.0,0.00017092,2]
[326485346,1714992651284,-500.0,0.00017092,2]
[326485347,1714992651293,-645.51,0.00017092,2]
[326485348,1714992651301,-500.0,0.00017092,2]
[326485349,1714992651310,-500.0,0.00017092,2]
[326485350,1714992651319,-545.57,0.00017092,2]
[326485351,1714992651328,-62.07127069,0.00017092,2]
[326485352,1714992705854,670.1607429,9.999e-05,2]
[326485353,1714992771273,24900.0,0.00015811,2]
[326485356,1714993254493,294.38082405,0.000137,2]
[326485357,1714993264546,-64505.49671171,0.00021003,10]
[326485358,1714993264606,-165494.50328829,0.00021003,10]
[326485359,1714993280219,24900.0,0.00015765,2]
[326485361,1714993352203,1500.0,0.00015,2]
[326485362,1714993405753,2152.71563818,9.999e-05,2]
[326485369,1714993607751,10000.0,0.000162,2]
[326485370,1714993619092,10000.0,0.000162,2]
[326485371,1714993633250,10000.0,0.000162,2]
[326485372,1714993641682,10000.0,0.000162,2]
[326485373,1714993652669,8041.10432366,0.000162,2]
[326485375,1714993679824,10000.0,0.00016,2]
[326485376,1714993691353,9420.42,0.00016,2]
[326485406,1714993781809,24900.0,0.00015612,2]
[326485482,1714993837012,-294.38082405,0.00016194,2]
[326485484,1714993837021,-3054.9715797,0.00016194,2]
[326485486,1714993837031,-2395.29274351,0.00016195,2]
[326485488,1714993837042,-1958.89567634,0.000162,2]
[326485490,1714993837052,-181.66450503,0.00016716,2]
[326485492,1714993837063,-181.66450502,0.00016716,2]
[326485494,1714993837073,-181.66450502,0.00016717,2]
[326485497,1714993837084,-181.66450502,0.00016717,2]
[326485500,1714993837096,-181.66450502,0.00016717,2]
[326485503,1714993837106,-379.70928376,0.00016815,2]
[326485506,1714993837116,-1881.78834853,0.00016815,2]
[326485509,1714993837126,-154.70605849,0.00016815,2]
[326485512,1714993837136,-186.8781699,0.00016815,2]
[326485516,1714993837148,-670.10512929,0.00016815,2]
[326485519,1714993837158,-2499.79,0.00016815,2]
[326485521,1714993837167,-11384.8,0.00016815,2]
[326485523,1714993837178,-500.0,0.00016815,2]
[326485525,1714993837188,-1022.66,0.00016815,2]
[326485527,1714993837197,-500.0,0.00016815,2]
[326485529,1714993837207,-543.28,0.00016815,2]
[326485531,1714993837216,-15009.43,0.00016815,2]
[326485533,1714993837226,-1459.89,0.00016815,2]
[326485535,1714993837235,-1512.68,0.00016815,2]
[326485537,1714993837244,-500.0,0.00016815,2]
[326485539,1714993837254,-500.0,0.00016815,2]
[326485541,1714993837263,-500.0,0.00016815,2]
[326485543,1714993837278,-500.0,0.00016815,2]
[326485545,1714993837288,-2103.48558965,0.00016816,2]
[326485547,1714993837297,-500.0,0.00016816,2]
[326485549,1714993837307,-500.0,0.00016816,2]
[326485551,1714993837317,-554.48,0.00016816,2]
[326485553,1714993837326,-500.0,0.00016816,2]
[326485555,1714993837337,-154.40403358,0.00016816,2]
[326485557,1714993837347,-501.58877556,0.00016816,2]
[326485559,1714993837357,-504.58377988,0.00016816,2]
[326485561,1714993837368,-849.01,0.00016816,2]
[326485563,1714993837377,-242.6138127,0.00016816,2]
[326485565,1714993837400,-639.09867849,0.00016816,2]
[326485567,1714993837425,-2538.42,0.00016816,2]
[326485569,1714993837438,-500.0,0.00016816,2]
[326485572,1714993837453,-500.0,0.00016816,2]
[326485574,1714993837463,-507.02524401,0.00016816,2]
[326485576,1714993837474,-278.74471924,0.00016816,2]
[326485578,1714993837484,-500.0,0.00016816,2]
[326485580,1714993837495,-500.0,0.00016816,2]
[326485581,1714993837505,-500.0,0.00016816,2]
[326485583,1714993837514,-500.0,0.00016816,2]
[326485585,1714993837524,-500.0,0.00016816,2]
[326485587,1714993837533,-501.64538408,0.00016816,2]
[326485589,1714993837543,-672.24,0.00016816,2]
[326485591,1714993837553,-500.0,0.00016816,2]
[326485593,1714993837563,-500.0,0.00016816,2]
[326485595,1714993837572,-500.0,0.00016816,2]
[326485597,1714993837582,-507.88,0.00016816,2]
[326485599,1714993837592,-500.0,0.00016816,2]
[326485601,1714993837602,-500.0,0.00016816,2]
[326485603,1714993837612,-500.0,0.00016816,2]
[326485605,1714993837621,-500.0,0.00016816,2]
[326485607,1714993837630,-500.0,0.00016816,2]
[326485609,1714993837640,-500.0,0.00016816,2]
[326485611,1714993837650,-500.0,0.00016816,2]
[326485613,1714993837660,-708.18,0.00016816,2]
[326485615,1714993837669,-735.13,0.00016816,2]
[326485616,1714993837679,-1169.81,0.00016816,2]
[326485617,1714993837688,-528.48903405,0.00016816,2]
[326485618,1714993837697,-500.0,0.00016816,2]
[326485619,1714993837707,-3828.64,0.00016816,2]
[326485620,1714993837716,-506.73868127,0.00016816,2]
[326485621,1714993837725,-610.01,0.00016816,2]
[326485622,1714993837735,-533.28,0.00016816,2]
[326485623,1714993837744,-533.28,0.00016816,2]
[326485624,1714993837753,-533.28,0.00016816,2]
[326485625,1714993837763,-500.0,0.00016816,2]
[326485626,1714993837772,-500.0,0.00016816,2]
[326485627,1714993837781,-829.58,0.00016816,2]
[326485628,1714993837790,-500.0,0.00016816,2]
[326485629,1714993837818,-500.0,0.00016816,2]
[326485630,1714993837878,-500.0,0.00016816,2]
[326485631,1714993837940,-1043.0,0.00016816,2]
[326485632,1714993837967,-1943.49,0.00016816,2]
[326485633,1714993837977,-500.0,0.00016816,2]
[326485634,1714993837986,-500.0,0.00016816,2]
[326485635,1714993837996,-603.84,0.00016816,2]
[326485636,1714993838005,-500.0,0.00016816,2]
[326485637,1714993838014,-524.7469045,0.00016816,2]
[326485638,1714993838025,-500.0,0.00016816,2]
[326485639,1714993838035,-1957.89,0.00016816,2]
[326485640,1714993838045,-500.0,0.00016816,2]
[326485641,1714993838081,-500.0,0.00016816,2]
[326485642,1714993838091,-1265.78,0.00016816,2]
[326485643,1714993838101,-500.0,0.00016816,2]
[326485644,1714993838110,-500.0,0.00016816,2]
[326485645,1714993838119,-4127.46403567,0.00016816,2]
[326485695,1714993840242,-2217.54214438,0.00016816,2]
[326485698,1714993840255,-763.39381995,0.00016816,2]
[326485700,1714993840265,-725.45499412,0.00016816,2]
[326485803,1714993846541,-170.17500588,0.00016816,2]
[326485804,1714993846551,-500.0,0.00016816,2]
[326485805,1714993846560,-612.07,0.00016816,2]
[326485806,1714993846570,-500.0,0.00016816,2]
[326485807,1714993846579,-8325.34,0.00016816,2]
[326485808,1714993846589,-7097.36,0.00016816,2]
[326485809,1714993846601,-500.0,0.00016816,2]
[326485810,1714993846611,-500.0,0.00016816,2]
[326485811,1714993846620,-590.26,0.00016816,2]
[326485812,1714993846629,-500.0,0.00016816,2]
[326485813,1714993846639,-2481.04,0.00016816,2]
[326485814,1714993846648,-500.0,0.00016816,2]
[326485815,1714993846658,-6609.34077501,0.00016816,2]
[326485817,1714993846809,-227.83922499,0.00016816,2]
[326485821,1714993846821,-500.0,0.00016816,2]
[326485825,1714993846832,-500.0,0.00016816,2]
[326485828,1714993846842,-686.18,0.00016816,2]
[326485832,1714993846855,-568.34,0.00016816,2]
[326485836,1714993846864,-916.87,0.00016816,2]
[326485841,1714993846874,-500.0,0.00016816,2]
[326485846,1714993846884,-500.0,0.00016816,2]
[326485849,1714993846893,-679.4,0.00016816,2]
[326485853,1714993846903,-2593.57,0.00016816,2]
[326485857,1714993846913,-3816.1,0.00016816,2]
[326485861,1714993846923,-611.28,0.00016816,2]
[326485863,1714993846932,-631.17,0.00016816,2]
[326485865,1714993846942,-1176.21,0.00016816,2]
[326485867,1714993846952,-500.0,0.00016816,2]
[326485869,1714993846962,-8447.07,0.00016816,2]
[326485871,1714993846972,-500.0,0.00016816,2]
[326485873,1714993846982,-500.0,0.00016816,2]
[326485875,1714993846992,-500.0,0.00016816,2]
[326485877,1714993847004,-500.0,0.00016816,2]
[326485879,1714993847014,-154.7215013,0.00016816,2]
[326485881,1714993847023,-500.0,0.00016816,2]
[326485883,1714993847032,-500.0,0.00016816,2]
[326485885,1714993847045,-500.0,0.00016816,2]
[326485887,1714993847054,-500.0,0.00016816,2]
[326485889,1714993847064,-500.0,0.00016816,2]
[326485891,1714993847073,-1177.77,0.00016816,2]
[326485893,1714993847082,-500.0,0.00016816,2]
[326485895,1714993847091,-500.0,0.00016816,2]
[326485897,1714993847104,-764.28,0.00016816,2]
[326485899,1714993847113,-671.64,0.00016816,2]
[326485901,1714993847122,-500.0,0.00016816,2]
[326485902,1714993847131,-500.0,0.00016816,2]
[326485904,1714993847141,-5850.11,0.00016816,2]
[326485906,1714993847150,-11154.3,0.00016816,2]
[326485907,1714993847160,-500.0,0.00016816,2]
[326485908,1714993847170,-1417.82,0.00016816,2]
[326485909,1714993847179,-500.0,0.00016816,2]
[326485910,1714993847189,-500.0,0.00016816,2]
[326485911,1714993847199,-500.0,0.00016816,2]
[326485912,1714993847208,-155.91091771,0.00016817,2]
[326485913,1714993847217,-620.36,0.00016817,2]
[326485914,1714993847226,-14.65464574,0.00016817,2]
[326485915,1714993847238,-485.34535426,0.00016817,2]
[326485916,1714993847248,-500.0,0.00016817,2]
[326485917,1714993847256,-500.0,0.00016817,2]
[326485918,1714993847266,-500.0,0.00016817,2]
[326485919,1714993847280,-151.0,0.00016817,2]
[326485920,1714993847289,-500.0,0.00016817,2]
[326485921,1714993847300,-500.0,0.00016817,2]
[326485922,1714993847310,-500.0,0.00016817,2]
[326485923,1714993847319,-1781.63,0.00016817,2]
[326485924,1714993847328,-600.58,0.00016817,2]
[326485925,1714993847349,-465.91906961,0.00016817,2]
[326485926,1714993847360,-532.26,0.00016817,2]
[326485927,1714993847369,-500.0,0.00016817,2]
[326485928,1714993847378,-500.0,0.00016817,2]
[326485929,1714993847388,-802.31,0.00016817,2]
[326485930,1714993847397,-500.0,0.00016817,2]
[326485931,1714993847406,-500.0,0.00016817,2]
[326485932,1714993847415,-500.0,0.00016817,2]
[326485933,1714993847425,-500.0,0.00016817,2]
[326485934,1714993847434,-286.49071379,0.00016817,2]
[326485935,1714993847443,-500.0,0.00016817,2]
[326485936,1714993847452,-500.0,0.00016817,2]
[326485937,1714993847461,-500.0,0.00016817,2]
[326485939,1714993847471,-216.31819528,0.00016817,2]
[326485941,1714993847480,-500.0,0.00016817,2]
[326485943,1714993847489,-500.0,0.00016817,2]
[326485944,1714993847498,-502.94969491,0.00016817,2]
[326485946,1714993847507,-500.0,0.00016817,2]
[326485948,1714993847517,-500.0,0.00016817,2]
[326485950,1714993847526,-500.0,0.00016817,2]
[326485952,1714993847535,-1000.0,0.00016817,2]
[326485953,1714993847547,-660.51,0.00016817,2]
[326485955,1714993847556,-500.0,0.00016817,2]
[326485956,1714993847566,-740.27,0.00016817,2]
[326485957,1714993847575,-704.4,0.00016817,2]
[326485958,1714993847584,-500.0,0.00016817,2]
[326485959,1714993847593,-500.0,0.00016817,2]
[326485960,1714993847604,-500.0,0.00016817,2]
[326485961,1714993847613,-1365.14,0.00016817,2]
[326485962,1714993847622,-1137.78,0.00016817,2]
[326485963,1714993847631,-500.0,0.00016817,2]
[326485964,1714993847640,-500.0,0.00016817,2]
[326485965,1714993847650,-1414.25,0.00016817,2]
[326485966,1714993847659,-500.0,0.00016817,2]
[326485967,1714993847668,-565.02359435,0.00016817,2]
[326485968,1714993847677,-500.0,0.00016817,2]
[326485969,1714993847686,-500.0,0.00016817,2]
[326485970,1714993847695,-578.47,0.00016817,2]
[326485971,1714993847704,-500.0,0.00016817,2]
[326485972,1714993847714,-500.0,0.00016817,2]
[326485973,1714993847723,-500.0,0.00016817,2]
[326485974,1714993847732,-500.0,0.00016817,2]
[326485975,1714993847741,-500.0,0.00016817,2]
[326485976,1714993847750,-500.0,0.00016817,2]
[326485977,1714993847760,-500.0,0.00016817,2]
[326485978,1714993847769,-500.0,0.00016817,2]
[326485979,1714993847778,-500.0,0.00016817,2]
[326485980,1714993847787,-500.0,0.00016817,2]
[326485981,1714993847796,-500.0,0.00016817,2]
[326485982,1714993847805,-500.0,0.00016817,2]
[326485983,1714993847814,-500.0,0.00016817,2]
[326485984,1714993847823,-562.76917341,0.00016817,2]
[326485985,1714993847832,-500.0,0.00016817,2]
[326485986,1714993847849,-776.47,0.00016817,2]
[326485987,1714993847858,-500.0,0.00016817,2]
[326485988,1714993847868,-500.0,0.00016817,2]
[326485989,1714993847877,-797.9,0.00016817,2]
[326485990,1714993847886,-506.60193855,0.00016817,2]
[326485991,1714993847895,-500.0,0.00016817,2]
[326485992,1714993847905,-500.0,0.00016817,2]
[326485993,1714993847914,-202.05074407,0.00016817,2]
[326485994,1714993847923,-500.0,0.00016817,2]
[326485995,1714993847933,-1956.4,0.00016817,2]
[326485996,1714993847942,-603.36,0.00016817,2]
[326485998,1714993847951,-507.94242711,0.00016817,2]
[326485999,1714993847960,-500.0,0.00016817,2]
[326486001,1714993847969,-606.8,0.00016817,2]
[326486002,1714993847979,-574.64,0.00016817,2]
[326486003,1714993847988,-725.82,0.00016817,2]
[326486004,1714993847999,-725.82,0.00016817,2]
[326486005,1714993848007,-500.0,0.00016817,2]
[326486006,1714993848017,-500.0,0.00016817,2]
[326486007,1714993848026,-500.0,0.00016817,2]
[326486008,1714993848036,-500.0,0.00016817,2]
[326486009,1714993848046,-3013.12,0.00016817,2]
[326486010,1714993848056,-592.8,0.00016817,2]
[326486011,1714993848065,-500.0,0.00016817,2]
[326486012,1714993848074,-718.56,0.00016817,2]
[326486013,1714993848083,-500.0,0.00016817,2]
[326486014,1714993848093,-500.0,0.00016817,2]
[326486015,1714993848104,-55373.8,0.00016817,2]
[326486016,1714993848114,-450.31336617,0.00016817,2]
[326486017,1714993848123,-500.0,0.00016817,2]
[326486018,1714993848132,-500.0,0.00016817,2]
[326486019,1714993848142,-500.0,0.00016817,2]
[326486020,1714993848151,-500.0,0.00016817,2]
[326486021,1714993848160,-760.94,0.00016817,2]
[326486022,1714993848170,-500.0,0.00016817,2]
[326486023,1714993848179,-2981.36,0.00016817,2]
[326486024,1714993848200,-194.85461622,0.00016817,2]
[326486025,1714993848209,-618.61,0.00016817,2]
[326486026,1714993848219,-533.28,0.00016817,2]
[326486027,1714993848228,-500.0,0.00016817,2]
[326486028,1714993848238,-809.76,0.00016817,2]
[326486029,1714993848247,-500.0,0.00016817,2]
[326486030,1714993848256,-500.0,0.00016817,2]
[326486031,1714993848267,-500.0,0.00016817,2]
[326486032,1714993848280,-522.84,0.00016817,2]
[326486033,1714993848290,-7114.44,0.00016817,2]
[326486034,1714993848300,-500.0,0.00016817,2]
[326486035,1714993848313,-500.0,0.00016817,2]
[326486036,1714993848324,-500.0,0.00016817,2]
[326486037,1714993848335,-500.0,0.00016817,2]
[326486038,1714993848347,-504.57844239,0.00016817,2]
[326486039,1714993848365,-500.0,0.00016817,2]
[326486040,1714993848375,-500.0,0.00016817,2]
[326486041,1714993848384,-856.67,0.00016817,2]
[326486042,1714993848394,-14611.85,0.00016817,2]
[326486043,1714993848404,-500.0,0.00016817,2]
[326486044,1714993848414,-500.0,0.00016817,2]
[326486045,1714993848423,-500.0,0.00016817,2]